Workbook

Sheet MSL

Sheet intro
A17: Version 33
A18: 14
A19: Windows (32-bit) NT 6.01

Sheet disclaimer

Sheet Tool
G5: Temp. | K5: Name | P5: OEL | R5: Sat Vap
G6: 25°C | K6: Allyl alcohol | P6: 2 | R6: 26.1
P10: VHR | Q10: =IF(ChoiceSub="","",SatVap/OEL) -> 13.05
K11: Factor | L11: =Control_factor(ChoiceControl,TbControls) -> 1/1,000th of Saturation | P11: VHR scale | Q11: =VHRScale(Q10) -> 3
D12: 1
D13: 2 | K13: Results | P13: ReqLC | Q13: =IF(VHRsc="","",VLOOKUP(VHRsc,TbVHR,4,FALSE)) -> GGV with capture at emission points
D14: 3 | K14: SVC | L14: =SVC_Daniel(SatVap) -> 34300
D15: 4 | K15: Cmax | L15: =C_Maximum(SVC,Factor,FactorNum) -> 34.3
D16: 5 | K16: X0.95 | L16: =X_95_Daniel(Cmax,OEL) -> 1720
D17: 6 | K17: Category | L17: =OEL_Cat(X_95) -> 4
D18: 7
D19: 8 | K19: =IF(Category="","","Recommended Control :") -> Recommended Control :
D20: 9 | K20: =IF(Category="","",VLOOKUP(L17,TbCat,3,FALSE)) -> + respirators & engineering controls, work practice controls | Q20: =IF(Choice_oRLOC="","","Predicted exposure Category") -> Predicted exposure Category | S20: =PEC(VHRsc,Choice_oRLOC) -> 4
D21: 10
D24: 4
D25: 5
D26: 6
D27: 7

Sheet Tool_Aero
D7: PHR Scale | E7: =IF(ChoiceOEL_range="","",VLOOKUP(ChoiceOEL_range,TbPHR,3,FALSE)) -> 5
D9: ReqLC | E9: =IF(ChoiceOEL_range="","",VLOOKUP(ChoiceOEL_range,TbPHR,4,FALSE)) -> Containment
D11: Select the ObsLC
G12: =PEC(PHRsc,Choice_oRLOC_2) -> 4

Sheet data
B3: Data for the 'CheckList" | J3: =SUM(PercentZone) -> 0
H6: Choice | I6: Name | J6: Percentage | K6: OEL | L6: SatVap | M6: SatVapAntoine | N6: SatVapCC
C7: 1 | D7: RefVal | F7: ChoiceSub | G7: 1 | H7: 29 | J7: =Tool!F12 -> 0
C8: 1 | D8: SV_Type | G8: 2 | J8: =Tool!G13 -> 0
G9: 3 | J9: =Tool!G14 -> 0
G10: 4 | J10: =Tool!G15 -> 0
C11: 3 | D11: ChoiceControl | G11: 5 | J11: =Tool!G16 -> 0
C12: =IF(ChoiceControl=0,"",VLOOKUP(ChoiceControl,TbControls,5,FALSE)) -> 1000 | D12: FactorNum | G12: 6 | J12: =Tool!G17 -> 0
C13: 1 | D13: Choice_oRLOC | G13: 7 | J13: =Tool!G18 -> 0
G14: 8 | J14: =Tool!G19 -> 0
C15: 5 | D15: ChoiceOEL_range | G15: 9 | J15: =Tool!G20 -> 0
C16: 3 | D16: Choice_oRLOC_2 | G16: 10 | J16: =Tool!G21 -> 0
C17: =IF(OR(ISBLANK(ChoiceOEL_range),ISBLANK(Choice_oRLOC_2)),"","Predicted exposure category") -> Predicted exposure category

Sheet Mark
F1: Exposure Index Calculations | J1: @ 25 degrees C
F3: STEP 1: Enter Mix Information in GREEN area below. Resulting Exposure Calculations are shown in green areas.
H4: =COUNTA(WT) -> 6
F5: CAS | G5: Chemical | H5: WT (%) | I5: OEL ppm | J5: MW | K5: VP (torr) | L5: Mole Fraction | M5: Mole % in Liquid | N5: Adjusted VP | O5: Vapor Mole Percent | P5: Adjusted VHR | Q5: VHR Ratio % | Y5: Assume have 1 g | AA5: (OELxMW) /24.5 | AB5: =SUM(AB7:AB16) -> 0.0236
F6: Number | G6: Information | H6: MSDS | I6: look up | J6: look up | K6: look up | L6: A/C | M6: E/total E | N6: F* D | O6: (G/total G)*100 | P6: (G/B) | Q6: (H/Max H)* 100 | S6: Sat. VP | T6: Poor | U6: Good | V6: Capture | W6: Contain.
E7: 1 | G7: toluene | H7: 40 | I7: 20 | J7: 92.1 | K7: 28.4 | L7: =IF(MW=0,0,WT/MW) -> 0.4343 | M7: =IF(TotMolFraction=0,0,MolFraction/TotMolFraction) -> 0.4306 | N7: =MolPer*VP -> 12.2289 | O7: =IF(TotAdjVP=0,0,AdjVP/TotAdjVP) -> 19.2% | P7: =IF(OR(MW=0,OOOO=0),0,(((WT/MW)/TotMolFraction)*VP)/OOOO) -> 0.6114 | Q7: =IF(MAX(AdjVHR)=0,0,AdjVHR/MAX(AdjVHR)) -> 12.70% | S7: =AdjVP/760*10^6 -> 16090.60 | T7: =S7/100 -> 160.91 | U7: =S7/1000 -> 16.09 | V7: =S7/10000 -> 1.61 | W7: =S7/100000 -> 0.16 | Y7: =WT/100*MW -> 36.84 | AA7: =(OOOO*MW)/24.5 -> 75.2 | AB7: =IF(OR(WT=0,MW=0,OOOO=0),0,WT/100/((OOOO*MW)/24.5)) -> 0.005320304017 | AE7: =WT*MW/100 -> 36.84
E8: 2 | G8: xylene | H8: 20 | I8: 100 | J8: 106.2 | K8: 8.74 | L8: 0.1883 | M8: 0.1867 | N8: =MolPer*VP -> 1.6319 | O8: 2.6% | P8: 0.0163 | Q8: 0.34% | S8: 2147.19 | T8: 21.47 | U8: 2.15 | V8: 0.21 | W8: 0.02 | Y8: 21.24 | AA8: =(OOOO*MW)/24.5 -> 433.5 | AB8: 0.000461393597 | AE8: 21.24
E9: 3 | G9: ethyl acetate | H9: 20 | I9: 400 | J9: 88.1 | K9: 93.2 | L9: 0.2270 | M9: 0.2251 | N9: 20.9767 | O9: 33.0% | P9: 0.0524 | Q9: 1.09% | S9: 27600.92 | T9: 276.01 | U9: 27.60 | V9: 2.76 | W9: 0.28 | Y9: 17.62 | AA9: 1438.4 | AB9: 0.000139046538 | AE9: 17.62
E10: 4 | G10: benzene | H10: 2 | I10: 0.5 | J10: 78.1 | K10: 94.8 | L10: 0.0256 | M10: 0.0254 | N10: 2.4069 | O10: 3.8% | P10: 4.8138 | Q10: 100.00% | S10: 3166.95 | T10: 31.67 | U10: 3.17 | V10: 0.32 | W10: 0.03 | Y10: 1.562 | AA10: 1.6 | AB10: 0.01254801536 | AE10: 1.562
E11: 5 | G11: methylene chloride | H11: 3 | I11: 25 | J11: 84.9 | K11: 435 | L11: 0.0353 | M11: 0.0350 | N11: 15.2395 | O11: 23.9% | P11: 0.6096 | Q11: 12.66% | S11: 20051.94 | T11: 200.52 | U11: 20.05 | V11: 2.01 | W11: 0.20 | Y11: 2.547 | AA11: 86.6 | AB11: 0.0003462897527 | AE11: 2.547
E12: 6 | G12: carbon tetrachloride | H12: 15 | I12: 5 | J12: 153 | K12: 115 | L12: 0.0980 | M12: 0.0972 | N12: 11.1780 | O12: 17.6% | P12: 2.2356 | Q12: 46.44% | S12: 14707.92 | T12: 147.08 | U12: 14.71 | V12: 1.47 | W12: 0.15 | Y12: 22.95 | AA12: 31.2 | AB12: 0.004803921569 | AE12: 22.95
E13: 7 | L13: 0.0000 | M13: 0.0000 | N13: 0.0000 | O13: 0.0% | P13: 0.0000 | Q13: 0.00% | S13: 0.00 | T13: 0.00 | U13: 0.00 | V13: 0.00 | W13: 0.00 | Y13: 0 | AA13: 0.0 | AB13: 0 | AE13: 0
E14: 8 | L14: 0.0000 | M14: 0.0000 | N14: 0.0000 | O14: 0.0% | P14: 0.0000 | Q14: 0.00% | S14: 0.00 | T14: =S14/100 -> 0.00 | U14: =S14/1000 -> 0.00 | V14: =S14/10000 -> 0.00 | W14: =S14/100000 -> 0.00 | Y14: 0 | AA14: 0.0 | AB14: 0
E15: 9 | L15: 0.0000 | M15: 0.0000 | N15: 0.0000 | O15: 0.0% | P15: 0.0000 | Q15: 0.00% | S15: 0.00 | T15: 0.00 | U15: 0.00 | V15: 0.00 | W15: 0.00 | Y15: 0 | AA15: 0.0 | AB15: 0
E16: 10 | L16: 0.0000 | M16: 0.0000 | N16: 0.0000 | O16: 0.0% | P16: 0.0000 | Q16: 0.00% | S16: 0.00 | T16: 0.00 | U16: 0.00 | V16: 0.00 | W16: 0.00 | Y16: 0 | AA16: 0.0 | AB16: 0 | AE16: 0
H18: =SUM(WT) -> 100 | L18: =SUM(MolFraction) -> 1.0086 | M18: =SUM(MolPer) -> 1.0000 | N18: =SUM(AdjVP) -> 63.6618 | P18: =SUM(AdjVHR) -> 8.3391 | X18: MW of Mixture: | Y18: =SUM(Y7:Y16) -> 102.76 | AB18: =1/SUM(AB7:AB16) -> 42.34 | AC18: OEL mix in mg/m³
X19: MATRIX formula ! | Y19: =Sig_Figure(SUM(WT/100*MW),5) -> 102.76 | AB19: =OEL_Mix/(MW_Mix/24.5) -> 10.09 | AC19: OEL mix in ppm
P23: 3 sig figures | Y23: 5 sig figures | AB23: 4 sig figures
P24: Adjusted VHR | Y24: MW of Mixture: | AB24: OEL mix
O25: VBA | P25: =Adjusted_VHR_Mixture_CheckList(WT,MW,OOOO,VP) -> 8.34 | X25: VBA | Y25: =MW_mixture_CheckList(WT,MW) -> 102.76 | AA25: VBA | AB25: =OEL_Mixture_CheckList(WT,OOOO,MW) -> 42.34 | AC25: OEL mix in mg/m³
AA26: VBA | AB26: =OEL_Mix_PPM_Checklist(AB25,Y25) -> 10.09 | AC26: OEL mix in ppm

Sheet Tables
B3: Table of Controls
B5: # | C5: Observed Level of Control (OLOC) | D5: sfhsfd | E5: Fraction of Saturation | F5: Factor
B6: 1 | C6: Confined Space – | D6: Virtually no circulation | E6: 1/10th of Saturation | F6: 10
B7: 2 | C7: Poor – Limited Circulation | D7: Limited Circulation | E7: 1/100th of Saturation | F7: 100
B8: 3 | C8: Good – General | D8: ~ 6 air changes/hr. | E8: 1/1,000th of Saturation | F8: 1000
B9: 4 | C9: Capture | E9: 1/10,000th of Saturation | F9: 10000
B10: 5 | C10: Containment | E10: 1/100,000th of Saturation | F10: 100000
B12: Table of VHR
B14: Num | C14: Vapor Hazard Ratio (VHR) | D14: VHR Scale | E14: Required Levels of Control (RLOC) | H14: ECC : | I14: Exposure Control Category
B15: 1 | C15: < 0.05 | D15: 1 | E15: General Ventilation ~ 3 to 6 air turnovers /hr. | H15: OEL: | I15: Occupational Exposure Limit
B16: 2 | C16: 0.05 to < 1 | D16: 2 | E16: Good general ventilation ~ 6 to 12 air turnovers/hr. (GGV) | H16: oRLC | I16: Observed or Reported Level of Control
B17: 3 | C17: 1 to < 25 | D17: 3 | E17: GGV with capture at emission points | H17: PHR: | I17: Potential Hazard Ratio
B18: 4 | C18: 25 to < 500 | D18: 4 | E18: Capture at points of emission with containment wherever practical | H18: RLOC | I18: Required Level of (Engineering) Control
B19: 5 | C19: 500 to < 3000 | D19: 5 | E19: Containment | H19: SVC | I19: Saturated Vapor Concentration
B20: 6 | C20: > 3000 | D20: 6 | E20: Primary and Secondary Containment | H20: VP | I20: Vapor Pressure, (mm Hg)
H21: VPR | I21: Vapor Hazard Ratio
B22: Table of PHR
B24: num | C24: OEL Range (mg/m3) | D24: PHR Scale | E24: Required Levels of Control
B25: 1 | C25: > 5 | D25: 1 | E25: General ventilation ~ 2 to 4 air turnovers/hr.
B26: 2 | C26: ≤ 5 to 1 | D26: 2 | E26: Good – General + fans ~ 4 to 6 air turnovers/hr.
B27: 3 | C27: ≤ 1 to 0.1 | D27: 3 | E27: Good – General + fans ~ 6 to 8 air turnovers/hr.
B28: 4 | C28: ≤ 0.1 to 0.01 | D28: 4 | E28: Capture
B29: 5 | C29: ≤ 0.01 to 0.001 | D29: 5 | E29: Containment
B30: 6 | C30: ≤ 0.001 | D30: 6 | E30: Secondary containment
C32: Table of Categories
C34: Cat | D34: Exposure Control Category (ECC) | E34: Recommended Control
C35: 1 | D35: 1 X0.95 < 0.10 OEL | E35: General HazCom
C36: 2 | D36: 2 0.10 OEL < X0.95 < 0.5 OEL | E36: + chemical specific HazCom
C37: 3 | D37: 3 0.5 OEL < X0.95 < OEL | E37: + exposure surveillance, medical surveillance, work practices
C38: 4 | D38: 4 OEL < X0.95 | E38: + respirators & engineering controls, work practice controls

Sheet H1

Sheet H2

Sheet Guide

Sheet Substances
C2: Substance table | E2: =COUNTA(C:C)-2 -> 155
C5: # | D5: CASRN | E5: name_fr | F5: name_en | G5: twa_ppm | H5: twa_mgm3 | I5: st_ppm | J5: st_mgm3 | K5: ceiling_ppm | L5: ceiling_mgm3 | M5: percutaneous | N5: cancerogenicity | O5: Mention EM | P5: odorThresholdMin | Q5: odorThresholdMax | R5: IDLH | S5: pSat | T5: pSatTemp
C6: 1 | D6: 79-34-5 | E6: Tétrachloro-1,1,2,2, éthane (Tétrachlorure d'acétylène) | F6: 1,1,2,2-Tetrachloroethane | G6: 1 | H6: 6.9 | M6: TRUE | P6: 3 | Q6: 5 | R6: 100 | S6: 4.62 | T6: 25
C7: 2 | D7: 76-13-1 | E7: Trichloro-1,1,2 trifluoro-1,2,2 éthane | F7: 1,1,2-Trichloro-1,2,2-trifluoroethane | G7: 1000 | H7: 7670 | I7: 1250 | J7: 9590 | M7: FALSE | P7: 45 | Q7: 134 | R7: 2000 | S7: 363 | T7: 25
C8: 3 | D8: 79-00-5 | E8: Trichloro-1,1,2 éthane | F8: 1,1,2-Trichloroethane | G8: 10 | H8: 55 | M8: TRUE | P8: 16 | R8: 100 | S8: 23.25 | T8: 25
C9: 4 | D9: 594-72-9 | E9: Dichloro-1,1 nitro-1 éthane | F9: 1,1-Dichloro-1-nitroethane | G9: 2 | H9: 12 | M9: FALSE | R9: 25 | S9: 16 | T9: 25
C10: 5 | D10: 75-34-3 | E10: Dichloro-1,1 éthane | F10: 1,1-Dichloroethane | G10: 100 | H10: 405 | M10: FALSE | P10: 5 | Q10: 200 | R10: 3000 | S10: 227 | T10: 25
C11: 6 | D11: 75-35-4 | E11: Dichloro-1,1 éthylène | F11: 1,1-Dichloroethylene | G11: 1 | H11: 4 | M11: FALSE | P11: 504.4 | Q11: 1000 | S11: 600 | T11: 25
C12: 7 | D12: 96-18-4 | E12: Trichloro-1,2,3 propane | F12: 1,2,3-Trichloropropane | G12: 10 | H12: 60 | M12: TRUE | R12: 100 | S12: 3.69 | T12: 25
C13: 8 | D13: 106-93-4 | E13: Dibromo-1,2 éthane | F13: 1,2-Dibromoethane | G13: 20 | H13: 155 | M13: TRUE | N13: C2 | O13: EM | P13: 8 | Q13: 10 | R13: 100 | S13: 11.2 | T13: 25
C14: 9 | D14: 107-06-2 | E14: Dichloro-1,2 éthane | F14: 1,2-Dichloroethane | G14: 1 | H14: 4 | I14: 2 | J14: 8 | M14: FALSE | N14: C2 | O14: EM | P14: 3 | Q14: 110 | R14: 50 | S14: 78.9 | T14: 25
C15: 10 | D15: 540-59-0 | E15: Dichloro-1,2 éthylène | F15: 1,2-Dichloroethylene | G15: 200 | H15: 793 | M15: FALSE | P15: 0.085 | R15: 1000 | S15: 201 | T15: 25
C16: 11 | D16: 78-87-5 | E16: Dichloro-1,2 propane | F16: 1,2-Dichloropropane | G16: 75 | H16: 347 | I16: 110 | J16: 508 | M16: FALSE | P16: 0.2 | R16: 400 | S16: 53.3 | T16: 25
C17: 12 | D17: 764-41-0 | E17: Dichloro-1,4 butène-2 | F17: 1,4-Dichloro-2-butene | G17: 0.005 | H17: 0.025 | M17: TRUE | N17: C2 | O17: EM | S17: 3 | T17: 25
C18: 13 | D18: 108-03-2 | E18: Nitro-1 propane | F18: 1-Nitropropane | G18: 25 | H18: 91 | M18: FALSE | P18: 300 | R18: 1000 | S18: 10.1 | T18: 25
C19: 14 | D19: 111-76-2 | E19: Butoxy-2 éthanol | F19: 2-Butoxyethanol | G19: 20 | H19: 97 | M19: TRUE | P19: 0.1 | R19: 700 | S19: 0.88 | T19: 25
C20: 15 | D20: 110-80-5 | E20: Éther monoéthylique de l'éthylène glycol | F20: 2-Ethoxyethanol (EGEE) | G20: 5 | H20: 18 | M20: TRUE | P20: 0.5 | Q20: 25 | R20: 500 | S20: 5.31 | T20: 25
C21: 16 | D21: 111-15-9 | E21: Acétate d'éthylglycol | F21: 2-Ethoxyethyl acetate (EGEEA) | G21: 5 | H21: 27 | M21: TRUE | P21: 0.1 | R21: 500 | S21: 2.34 | T21: 25
C22: 17 | D22: 999-61-1 | E22: Acrylate hydroxy-2 propyle | F22: 2-Hydroxypropyl acrylate | G22: 0.5 | H22: 2.8 | M22: TRUE
C23: 18 | D23: 109-86-4 | E23: Éther monométhylique de l'éthylène glycol | F23: 2-Methoxyethanol (EGME) | G23: 5 | H23: 16 | M23: TRUE | P23: 0.1 | Q23: 0.22 | R23: 200 | S23: 9.5 | T23: 25
C24: 19 | D24: 110-49-6 | E24: Acétate de méthylglycol | F24: 2-Methoxyethyl acetate (EGMEA) | G24: 5 | H24: 24 | M24: TRUE | R24: 200 | T24: 20
C25: 20 | D25: 79-46-9 | E25: Nitro-2 propane | F25: 2-Nitropropane | G25: 10 | H25: 36 | M25: FALSE | N25: C2 | O25: EM | P25: 3.1 | Q25: 7.9 | R25: 100 | S25: 20 | T25: 25
C26: 21 | D26: 107-05-1 | E26: Chloro-3 propène | F26: 3-Chloropropene (allyl chloride) | G26: 1 | H26: 3 | I26: 2 | J26: 6 | M26: FALSE | P26: 0.47 | Q26: 1.2 | R26: 250 | S26: 368 | T26: 25
C27: 22 | D27: 64-19-7 | E27: Acide acétique | F27: Acetic acid | G27: 10 | H27: 25 | I27: 15 | J27: 37 | M27: FALSE | P27: 0.074 | Q27: 1020 | R27: 50 | S27: 11.25 | T27: 20
C28: 23 | D28: 67-64-1 | E28: Acétone | F28: Acetone | G28: 500 | H28: 1190 | I28: 1000 | J28: 2380 | M28: FALSE | P28: 20 | Q28: 680 | R28: 2500 | S28: 231 | T28: 25
C29: 24 | D29: 75-05-8 | E29: Acétonitrile | F29: Acetonitrile | G29: 40 | H29: 67 | I29: 60 | J29: 101 | M29: FALSE | Q29: 42 | R29: 500 | S29: 88.8 | T29: 25
C30: 25 | D30: 98-86-2 | E30: Acétophénone | F30: Acetophenone | G30: 10 | H30: 49 | M30: FALSE | P30: 0.2 | Q30: 0.6 | S30: 0.397 | T30: 25
C31: 26 | D31: 79-06-1 | E31: Acrylamide | F31: Acrylamide | G31: 0.03 | M31: TRUE | N31: C2 | O31: EM | R31: 60 | S31: 0.00675 | T31: 25
C32: 27 | D32: 107-13-1 | E32: Acrylonitrile | F32: Acrylonitrile | G32: 2 | H32: 4.3 | M32: TRUE | N32: C2 | O32: EM | P32: 1.6 | Q32: 36 | R32: 85 | S32: 109 | T32: 25
C33: 28 | D33: 111-69-3 | E33: Adiponitrile | F33: Adiponitrile | G33: 2 | H33: 8.8 | M33: TRUE | S33: 0.00068 | T33: 25
C34: 29 | D34: 107-18-6 | E34: Alcool allylique | F34: Allyl alcohol | G34: 2 | H34: 4.8 | I34: 4 | J34: 9.5 | M34: TRUE | P34: 2.1 | R34: 20 | S34: 26.1 | T34: 25
C35: 30 | D35: 532-27-4 | E35: Alpha-Chloroacétophénone | F35: alpha-Chloroacetophenone | G35: 0.05 | H35: 0.32 | M35: FALSE | P35: 0.016 | Q35: 0.024 | R35: 15 | S35: 0.012 | T35: 20
C36: 31 | D36: 98-83-9 | E36: Alpha-Méthylstyrène | F36: alpha-Methyl styrene | G36: 50 | H36: 242 | I36: 100 | J36: 483 | M36: FALSE | P36: 0.05 | Q36: 200 | R36: 700 | S36: 1.9 | T36: 25
C37: 32 | D37: 62-53-3 | E37: Aniline | F37: Aniline | G37: 2 | H37: 7.6 | M37: TRUE | P37: 1 | R37: 100 | S37: 0.49 | T37: 25
C38: 33 | D38: 71-43-2 | E38: Benzène | F38: Benzene | G38: 1 | H38: 3 | I38: 5 | J38: 15.5 | M38: FALSE | N38: C1 | O38: EM | P38: 2 | R38: 500 | S38: 94.8 | T38: 25
C39: 34 | D39: 92-52-4 | E39: Biphényle | F39: Biphenyl | G39: 0.2 | H39: 1.3 | M39: FALSE | P39: 0.001 | Q39: 0.05 | R39: 100 | S39: 0.00893 | T39: 25
C40: 35 | D40: 7726-95-6 | E40: Brome | F40: Bromine | G40: 0.1 | H40: 0.66 | I40: 0.2 | J40: 1.3 | M40: FALSE | P40: 0.05 | Q40: 3.7 | R40: 3 | S40: 212 | T40: 25
C41: 36 | D41: 75-25-2 | E41: Bromoforme | F41: Bromoform | G41: 0.5 | H41: 5.2 | M41: TRUE | P41: 0.19 | R41: 850 | S41: 7.5 | T41: 30.5
C42: 37 | D42: 109-79-5 | E42: Butyl mercaptan | F42: Butyl mercaptan | G42: 0.5 | H42: 1.8 | M42: FALSE | P42: 0.1 | Q42: 1 | R42: 500 | S42: 45.5 | T42: 25
C43: 38 | D43: 76-22-2 | E43: Camphre synthétique | F43: Camphor (synthetic) | G43: 2 | H43: 12 | I43: 3 | J43: 19 | M43: FALSE | P43: 1.3 | R43: 200 | S43: 0.65 | T43: 25
C44: 39 | D44: 75-15-0 | E44: Carbone, disulfure de | F44: Carbon disulfide | G44: 4 | H44: 12 | I44: 12 | J44: 36 | M44: TRUE | P44: 0.1 | Q44: 0.2 | R44: 500 | S44: 359 | T44: 25
C45: 40 | D45: 56-23-5 | E45: Carbone, tétrachlorure de | F45: Carbon tetrachloride | G45: 5 | H45: 31 | I45: 10 | J45: 63 | M45: TRUE | N45: C2 | O45: EM | P45: 21.4 | Q45: 50 | R45: 200 | S45: 115 | T45: 25
C46: 41 | D46: 79-04-9 | E46: Chlorure de chloroacétyle | F46: Chloroacetyl chloride | G46: 0.05 | H46: 0.23 | I46: 0.15 | J46: 0.69 | M46: TRUE | P46: 0.023 | S46: 25.2 | T46: 25
C47: 42 | D47: 108-90-7 | E47: Chlorobenzène | F47: Chlorobenzene | G47: 50 | H47: 230 | M47: FALSE | P47: 0.2 | Q47: 61 | R47: 1000 | S47: 12 | T47: 25
C48: 43 | D48: 74-97-5 | E48: Chlorobromométhane | F48: Chlorobromomethane | G48: 200 | H48: 1060 | M48: FALSE | P48: 320 | R48: 2000 | S48: 142 | T48: 25
C49: 44 | D49: 67-66-3 | E49: Chloroforme | F49: Chloroform | G49: 5 | H49: 24.4 | M49: FALSE | N49: C2 | O49: EM | P49: 51 | Q49: 204 | R49: 500 | S49: 197 | T49: 25
C50: 45 | D50: 1319-77-3 | E50: Crésol, tous les isomères | F50: Cresol (all isomers) | G50: 5 | H50: 22 | M50: TRUE | P50: 0.00028 | Q50: 5 | R50: 250 | S50: 0.17 | T50: 25
C51: 46 | D51: 98-82-8 | E51: Cumène | F51: Cumene | G51: 50 | H51: 246 | M51: TRUE | P51: 1.2 | R51: 900 | S51: 4.5 | T51: 25
C52: 47 | D52: 110-82-7 | E52: Cyclohexane | F52: Cyclohexane | G52: 300 | H52: 1030 | M52: FALSE | P52: 0.417 | Q52: 25 | R52: 1300 | S52: 96.9 | T52: 25
C53: 48 | D53: 108-93-0 | E53: Cyclohexanol | F53: Cyclohexanol | G53: 50 | H53: 206 | M53: TRUE | P53: 0.062 | R53: 400 | S53: 0.8 | T53: 25
C54: 49 | D54: 108-94-1 | E54: Cyclohexanone | F54: Cyclohexanone | G54: 25 | H54: 100 | M54: TRUE | P54: 0.12 | Q54: 100 | R54: 700 | S54: 5 | T54: 26.4
C55: 50 | D55: 110-83-8 | E55: Cyclohexène | F55: Cyclohexene | G55: 300 | H55: 1010 | M55: FALSE | P55: 0.18 | R55: 2000 | S55: 89 | T55: 25
C56: 51 | D56: 108-91-8 | E56: Cyclohexylamine | F56: Cyclohexylamine | G56: 10 | H56: 41 | M56: FALSE | P56: 2.6 | S56: 10.1 | T56: 25
C57: 52 | D57: 542-92-7 | E57: Cyclopentadiène | F57: Cyclopentadiene | G57: 75 | H57: 203 | M57: FALSE | P57: 1.874 | R57: 750 | S57: 439 | T57: 25
C58: 53 | D58: 287-92-3 | E58: Cyclopentane | F58: Cyclopentane | G58: 600 | H58: 1720 | M58: FALSE | S58: 317.8 | T58: 25
C59: 54 | D59: 123-42-2 | E59: Diacétone alcool | F59: Diacetone alcohol | G59: 50 | H59: 238 | M59: FALSE | P59: 0.28 | Q59: 1.7 | R59: 1800 | S59: 0.97 | T59: 20
C60: 55 | D60: 77-73-6 | E60: Dicyclopentadiène | F60: Dicyclopentadiene | G60: 5 | H60: 27 | M60: FALSE | P60: 0.003 | Q60: 0.2 | S60: 1.4 | T60: 20
C61: 56 | D61: 60-29-7 | E61: Éther diéthylique | F61: Diethyl ether | G61: 400 | H61: 1210 | I61: 500 | J61: 1520 | M61: FALSE | P61: 0.33 | Q61: 1 | R61: 1900 | S61: 538 | T61: 25
C62: 57 | D62: 96-22-0 | E62: Diéthyl cétone | F62: Diethyl ketone | G62: 200 | H62: 705 | M62: FALSE | P62: 0.9 | S62: 37.7 | T62: 25
C63: 58 | D63: 108-83-8 | E63: Diisobutyl cétone | F63: Diisobutyl ketone | G63: 25 | H63: 145 | M63: FALSE | P63: 0.11 | Q63: 0.32 | R63: 500 | S63: 1.65 | T63: 25
C64: 59 | D64: 108-20-3 | E64: Éther diisopropylique | F64: Diisopropyl ether | G64: 250 | H64: 1040 | I64: 310 | J64: 1300 | M64: FALSE | P64: 0.017 | Q64: 30 | R64: 1400 | S64: 149 | T64: 25
C65: 60 | D65: 108-18-9 | E65: Diisopropylamine | F65: Diisopropylamine | G65: 5 | H65: 21 | M65: TRUE | P65: 0.1 | R65: 200 | S65: 79.4 | T65: 25
C66: 61 | D66: 25154-54-5 | E66: Dinitrobenzène (tous les isomères) [528-29-0; 99-65-0; 100-25-4; 25154-54-4] | F66: Dinitrobenzene (all isomers) | G66: 0.15 | H66: 1 | M66: TRUE | R66: 50 | S66: 0.0002 | T66: 25
C67: 62 | D67: 123-91-1 | E67: Dioxane | F67: Dioxane | G67: 20 | H67: 75 | M67: TRUE | N67: C3 | P67: 24 | R67: 500 | S67: 37 | T67: 25
C68: 63 | D68: 34590-94-8 | E68: Éther de dipropylène glycol monométhylique | F68: Dipropylene glycol monomethyl ether | G68: 100 | H68: 606 | I68: 150 | J68: 900 | M68: TRUE | P68: 34.6 | Q68: 990 | R68: 600 | S68: 0.4 | T68: 26
C69: 64 | D69: 1321-74-0 | E69: Divinylbenzène | F69: Divinyl benzene | G69: 10 | H69: 53 | M69: FALSE | S69: 0.579 | T69: 25
C70: 65 | D70: 106-89-8 | E70: Épichlorohydrine | F70: Epichlorohydrin | G70: 2 | H70: 7.6 | M70: TRUE | N70: C2 | O70: EM | P70: 10 | Q70: 25 | R70: 75 | S70: 16.4 | T70: 25
C71: 66 | D71: 141-78-6 | E71: Acétate d'éthyle | F71: Ethyl acetate | G71: 400 | H71: 1440 | M71: FALSE | P71: 0.005 | Q71: 185 | R71: 2000 | S71: 93.2 | T71: 25
C72: 67 | D72: 140-88-5 | E72: Acrylate d'éthyle | F72: Ethyl acrylate | G72: 5 | H72: 20 | I72: 15 | J72: 61 | M72: FALSE | N72: C3 | P72: 0.0002 | R72: 300 | S72: 38.6 | T72: 25
C73: 68 | D73: 64-17-5 | E73: Alcool éthylique | F73: Ethyl alcohol | G73: 1000 | H73: 1880 | M73: FALSE | P73: 0.1 | Q73: 49 | R73: 3300 | S73: 59.3 | T73: 25
C74: 69 | D74: 541-85-5 | E74: Éthyl amyl cétone | F74: Ethyl amyl ketone | G74: 25 | H74: 131 | M74: FALSE | P74: 5.9 | R74: 100 | S74: 2 | T74: 20
C75: 70 | D75: 100-41-4 | E75: Éthylbenzène | F75: Ethyl benzene | G75: 100 | H75: 434 | I75: 125 | J75: 543 | M75: FALSE | P75: 2 | Q75: 200 | R75: 800 | S75: 9.55 | T75: 25
C76: 71 | D76: 74-96-4 | E76: Bromoéthane | F76: Ethyl bromide | G76: 50 | H76: 223 | M76: TRUE | N76: C3 | P76: 200 | R76: 2000 | S76: 467 | T76: 25
C77: 72 | D77: 106-35-4 | E77: Éthylbutylcétone | F77: Ethyl butyl ketone | G77: 50 | H77: 234 | M77: FALSE | R77: 1000 | S77: 2.6 | T77: 20
C78: 73 | D78: 109-94-4 | E78: Formate d'éthyle | F78: Ethyl formate | G78: 100 | H78: 303 | M78: FALSE | P78: 31 | R78: 1500 | S78: 245 | T78: 25
C79: 74 | D79: 75-08-1 | E79: Éthylmercaptan | F79: Ethyl mercaptan | G79: 0.5 | H79: 1.3 | M79: FALSE | P79: 0.0001 | Q79: 0.001 | R79: 500 | S79: 529 | T79: 25
C80: 75 | D80: 75-12-7 | E80: Formamide | F80: Formamide | G80: 10 | H80: 18 | M80: TRUE | P80: 81.4 | S80: 0.061 | T80: 25
C81: 76 | D81: 98-01-1 | E81: Furfural | F81: Furfural | G81: 2 | H81: 7.9 | M81: TRUE | P81: 0.0061 | Q81: 5.1 | R81: 100 | S81: 2.21 | T81: 25
C82: 77 | D82: 98-00-0 | E82: Alcool furfurylique | F82: Furfuryl alcohol | G82: 10 | H82: 40 | I82: 15 | J82: 60 | M82: TRUE | P82: 8 | R82: 75 | S82: 0.609 | T82: 25
C83: 78 | D83: 111-30-8 | E83: Glutaraldéhyde | F83: Glutaraldehyde | G83: 0.1 | H83: 0.41 | K83: 0.1 | L83: 0.41 | M83: FALSE
C84: 79 | D84: 556-52-5 | E84: Glycidol | F84: Glycidol | G84: 25 | H84: 76 | M84: FALSE | R84: 150 | S84: 0.9 | T84: 20
C85: 80 | D85: 151-67-7 | E85: Halothane | F85: Halothane | G85: 50 | H85: 404 | M85: FALSE | P85: 33 | S85: 302 | T85: 25
C86: 81 | D86: 87-68-3 | E86: Hexachlorobutadiène | F86: Hexachlorobutadiene | G86: 0.02 | H86: 0.21 | M86: TRUE | N86: C2 | O86: EM | P86: 1.1 | S86: 0.22 | T86: 25
C87: 82 | D87: 95-13-6 | E87: Indène | F87: Indene | G87: 10 | H87: 48 | M87: FALSE | S87: 1.1 | T87: 25
C88: 83 | D88: 123-92-2 | E88: Acétate d'isoamyle | F88: Isoamyl acetate | G88: 50 | H88: 266 | I88: 100 | J88: 532 | M88: FALSE | P88: 0.025 | Q88: 4.1 | R88: 1000 | S88: 5.6 | T88: 25
C89: 84 | D89: 123-51-3 | E89: Alcool isoamylique | F89: Isoamyl alcohol | G89: 100 | H89: 361 | I89: 125 | J89: 452 | M89: FALSE | P89: 6.9 | R89: 500 | S89: 2.37 | T89: 25
C90: 85 | D90: 110-19-0 | E90: Acétate d'isobutyle | F90: Isobutyl acetate | G90: 150 | H90: 713 | M90: FALSE | P90: 0.002 | Q90: 117 | R90: 1300 | S90: 17.8 | T90: 25
C91: 86 | D91: 78-83-1 | E91: Alcool isobutylique | F91: Isobutyl alcohol | G91: 50 | H91: 152 | M91: FALSE | P91: 40 | R91: 1600 | S91: 10.4 | T91: 25
C92: 87 | D92: 26952-21-6 | E92: Alcool isooctylique | F92: Isooctyl alcohol | G92: 50 | H92: 266 | M92: TRUE | S92: 0.36 | T92: 20
C93: 88 | D93: 109-59-1 | E93: Isopropoxyéthanol | F93: Isopropoxyethanol | G93: 25 | H93: 106 | M93: TRUE | S93: 5.2 | T93: 25
C94: 89 | D94: 108-21-4 | E94: Acétate d'isopropyle | F94: Isopropyl acetate | G94: 250 | H94: 1040 | I94: 310 | J94: 1290 | M94: FALSE | P94: 0.045 | Q94: 364 | R94: 1800 | S94: 60.37 | T94: 25
C95: 90 | D95: 67-63-0 | E95: Alcool isopropylique | F95: Isopropyl alcohol | G95: 400 | H95: 983 | I95: 500 | J95: 1230 | M95: FALSE | P95: 3.2 | Q95: 199.2 | R95: 2000 | S95: 45.4 | T95: 25
C96: 91 | D96: 75-31-0 | E96: Isopropylamine | F96: Isopropylamine | G96: 5 | H96: 12 | I96: 10 | J96: 24 | M96: FALSE | P96: 0.21 | Q96: 200 | R96: 750 | S96: 579.6 | T96: 25
C97: 92 | D97: 141-79-7 | E97: Oxyde de mésityle | F97: Mesityl oxide | G97: 10 | H97: 40 | M97: FALSE | P97: 12 | Q97: 25 | R97: 1400 | S97: 8.7 | T97: 20
C98: 93 | D98: 137-05-3 | E98: Cyano-2 acrylate de méthyle | F98: Methyl 2-cyanoacrylate | G98: 2 | H98: 9.1 | I98: 4 | J98: 18 | M98: FALSE | P98: 0.9 | Q98: 5
C99: 94 | D99: 79-20-9 | E99: Acétate de méthyle | F99: Methyl acetate | G99: 200 | H99: 606 | I99: 250 | J99: 757 | M99: FALSE | P99: 200 | Q99: 300 | R99: 3100 | S99: 216.2 | T99: 25
C100: 95 | D100: 96-33-3 | E100: Acrylate de méthyle | F100: Methyl acrylate | G100: 2 | H100: 7 | M100: TRUE | P100: 0.003 | Q100: 20 | R100: 250 | S100: 86.6 | T100: 25
C101: 96 | D101: 67-56-1 | E101: Alcool méthylique | F101: Methyl alcohol | G101: 200 | H101: 262 | I101: 250 | J101: 328 | M101: TRUE | P101: 100 | Q101: 20490 | R101: 6000 | S101: 127 | T101: 25
C102: 97 | D102: 108-11-2 | E102: Alcool méthylamylique | F102: Methyl amyl alcohol | G102: 25 | H102: 104 | I102: 40 | J102: 167 | M102: TRUE | P102: 0.3 | R102: 400 | S102: 2.8 | T102: 20
C103: 98 | D103: 71-55-6 | E103: Méthylchloroforme | F103: Methyl chloroform | G103: 350 | H103: 1910 | I103: 450 | J103: 2460 | M103: FALSE | P103: 82 | R103: 700 | S103: 124 | T103: 25
C104: 99 | D104: 78-93-3 | E104: Méthyl éthyl cétone | F104: Methyl ethyl ketone (MEK) | G104: 50 | H104: 150 | I104: 100 | J104: 300 | M104: FALSE | P104: 0.25 | Q104: 50 | R104: 3000 | S104: 91 | T104: 25
C105: 100 | D105: 107-31-3 | E105: Formate de méthyle | F105: Methyl formate | G105: 100 | H105: 246 | I105: 150 | J105: 368 | M105: FALSE | P105: 203.6 | Q105: 2800 | R105: 4500 | S105: 585.7 | T105: 25
C106: 101 | D106: 74-88-4 | E106: Iodure de méthyle | F106: Methyl iodide | G106: 2 | H106: 12 | M106: TRUE | N106: C2 | O106: EM | R106: 100 | S106: 405 | T106: 25
C107: 102 | D107: 110-12-3 | E107: Méthyl isoamyl cétone | F107: Methyl isoamyl ketone | G107: 50 | H107: 234 | M107: FALSE | P107: 0.012 | S107: 5.77 | T107: 25
C108: 103 | D108: 108-10-1 | E108: Méthyl isobutyl cétone | F108: Methyl isobutyl ketone | G108: 50 | H108: 205 | I108: 75 | J108: 307 | M108: FALSE | P108: 0.1 | Q108: 47 | R108: 500 | S108: 19.9 | T108: 25
C109: 104 | D109: 563-80-4 | E109: Méthyl isopropyl cétone | F109: Methyl isopropyl ketone | G109: 200 | H109: 705 | M109: FALSE | S109: 42 | T109: 20
C110: 105 | D110: 80-62-6 | E110: Méthacrylate de méthyle (monomère) | F110: Methyl methacrylate (monomer) | G110: 50 | H110: 205 | M110: FALSE | P110: 0.05 | R110: 1000 | S110: 38.5 | T110: 25
C111: 106 | D111: 110-43-0 | E111: Méthyl n-amyl cétone | F111: Methyl n-amyl ketone | G111: 50 | H111: 233 | M111: FALSE | P111: 0.02 | R111: 800 | S111: 1.6 | T111: 25
C112: 107 | D112: 591-78-6 | E112: Méthyl n-butyl cétone | F112: Methyl n-butyl ketone | G112: 5 | H112: 20 | M112: TRUE | P112: 0.18 | R112: 1600 | S112: 3 | T112: 20
C113: 108 | D113: 107-87-9 | E113: Méthyl propyl cétone | F113: Methyl propyl ketone | G113: 150 | H113: 530 | M113: FALSE | P113: 7.9 | R113: 1500 | S113: 35.4 | T113: 25
C114: 109 | D114: 1634-04-4 | E114: Éther de méthyle et de butyle tertiaire | F114: Methyl tert-butyl ether | G114: 40 | H114: 144 | M114: FALSE | S114: 250 | T114: 25
C115: 110 | D115: 126-98-7 | E115: Méthylacrylonitrile | F115: Methylacrylonitrile | G115: 1 | H115: 2.7 | M115: TRUE | P115: 2.2 | S115: 71.2 | T115: 25
C116: 111 | D116: 108-87-2 | E116: Méthylcyclohexane | F116: Methylcyclohexane | G116: 400 | H116: 1610 | M116: FALSE | P116: 498 | R116: 1200 | S116: 46 | T116: 25
C117: 112 | D117: 25639-42-3 | E117: Méthylcyclohexanol | F117: Methylcyclohexanol | G117: 50 | H117: 234 | M117: FALSE | P117: 500 | R117: 500 | S117: 1.5 | T117: 30
C118: 113 | D118: 75-09-2 | E118: Chlorure de méthylène | F118: Methylene chloride | G118: 50 | H118: 174 | M118: FALSE | N118: C2 | O118: EM | P118: 155 | Q118: 622 | R118: 2300 | S118: 435 | T118: 25
C119: 114 | D119: 127-19-5 | E119: N,N-Diméthylacétamide | F119: N,N-Dimethylacetamide | G119: 10 | H119: 36 | M119: TRUE | P119: 21.4 | Q119: 46.8 | R119: 300 | S119: 2 | T119: 25
C120: 115 | D120: 68-12-2 | E120: N,N-Diméthylformamide | F120: N,N-Dimethylformamide | G120: 10 | H120: 30 | M120: TRUE | P120: 20 | Q120: 100 | R120: 500 | S120: 3.87 | T120: 25
C121: 116 | D121: 628-63-7 | E121: Acétate d'amyle normal | F121: n-Amyl acetate | G121: 50 | H121: 266 | I121: 100 | J121: 532 | M121: FALSE | P121: 0.005 | Q121: 7 | R121: 1000 | S121: 3.5 | T121: 25
C122: 117 | D122: 91-20-3 | E122: Naphtalène | F122: Naphthalene | G122: 10 | H122: 52 | I122: 15 | J122: 79 | M122: FALSE | P122: 0.3 | R122: 250 | S122: 0.085 | T122: 25
C123: 118 | D123: 123-86-4 | E123: Acétate de butyle normal | F123: n-Butyl acetate | G123: 150 | H123: 713 | I123: 200 | J123: 950 | M123: FALSE | P123: 0.3 | Q123: 20 | R123: 1700 | S123: 11.5 | T123: 25
C124: 119 | D124: 141-32-2 | E124: Acrylate de butyle normal | F124: n-Butyl acrylate | G124: 2 | H124: 10 | M124: FALSE | P124: 0.1 | S124: 5.45 | T124: 25
C125: 120 | D125: 71-36-3 | E125: Alcool butylique normal | F125: n-Butyl alcohol | G125: 50 | H125: 152 | K125: 50 | L125: 152 | M125: TRUE | P125: 0.12 | Q125: 50 | R125: 1400 | S125: 7 | T125: 25
C126: 121 | D126: 142-82-5 | E126: Heptane normal | F126: n-Heptane | G126: 400 | H126: 1640 | I126: 500 | J126: 2050 | M126: FALSE | P126: 49 | R126: 750 | S126: 40 | T126: 22.3
C127: 122 | D127: 110-54-3 | E127: Hexane normal | F127: n-Hexane | G127: 50 | H127: 176 | M127: TRUE | R127: 1100 | S127: 153 | T127: 25
C128: 123 | D128: 79-24-3 | E128: Nitroéthane | F128: Nitroethane | G128: 100 | H128: 307 | M128: FALSE | P128: 163 | R128: 1000 | S128: 20.8 | T128: 25
C129: 124 | D129: 75-52-5 | E129: Nitrométhane | F129: Nitromethane | G129: 100 | H129: 250 | M129: FALSE | P129: 3.5 | Q129: 100 | R129: 750 | S129: 27.8 | T129: 20
C130: 125 | D130: 111-84-2 | E130: Nonane | F130: Nonane | G130: 200 | H130: 1050 | M130: FALSE | P130: 650 | Q130: 9800 | S130: 4.45 | T130: 25
C131: 126 | D131: 109-66-0 | E131: Pentane normal | F131: n-Pentane | G131: 120 | H131: 350 | M131: FALSE | P131: 2.2 | Q131: 1017 | R131: 1500 | S131: 514 | T131: 25
C132: 127 | D132: 109-60-4 | E132: Acétate de propyle normal | F132: n-Propyl acetate | G132: 200 | H132: 835 | I132: 250 | J132: 1040 | M132: FALSE | P132: 0.05 | Q132: 25 | R132: 1700 | S132: 35.9 | T132: 25
C133: 128 | D133: 71-23-8 | E133: Alcool propylique normal | F133: n-Propyl alcohol | G133: 200 | H133: 492 | I133: 250 | J133: 614 | M133: TRUE | P133: 0.13 | Q133: 61 | R133: 800 | S133: 21 | T133: 25
C134: 129 | D134: 2039-87-4 | E134: o-Chlorostyrène | F134: o-Chlorostyrene | G134: 50 | H134: 283 | I134: 75 | J134: 425 | M134: FALSE | S134: 0.96 | T134: 25
C135: 130 | D135: 95-49-8 | E135: o-Chlorotoluène | F135: o-Chlorotoluene | G135: 50 | H135: 259 | M135: FALSE | S135: 3.43 | T135: 25
C136: 131 | D136: 111-65-9 | E136: Octane | F136: Octane | G136: 300 | H136: 1400 | I136: 375 | J136: 1750 | M136: FALSE | P136: 155 | Q136: 259 | R136: 1000 | S136: 14.1 | T136: 25
C137: 132 | D137: 583-60-8 | E137: o-Méthylcyclohexanone | F137: o-Methylcyclohexanone | G137: 50 | H137: 229 | I137: 75 | J137: 344 | M137: TRUE | R137: 600 | S137: 1 | T137: 20
C138: 133 | D138: 106-46-7 | E138: p-Dichlorobenzène | F138: p-Dichlorobenzene | G138: 20 | H138: 120 | I138: 110 | J138: 660 | M138: FALSE | N138: C3 | P138: 15 | R138: 150 | S138: 1.74 | T138: 25
C139: 134 | D139: 127-18-4 | E139: Perchloroéthylène | F139: Perchloroethylene | G139: 25 | H139: 170 | I139: 100 | J139: 685 | M139: FALSE | N139: C3 | P139: 47 | R139: 150 | S139: 18.2 | T139: 25
C140: 135 | D140: 108-95-2 | E140: Phénol | F140: Phenol | G140: 5 | H140: 19 | M140: TRUE | P140: 0.05 | Q140: 5.8 | R140: 250 | S140: 0.35 | T140: 25
C141: 136 | D141: 107-19-7 | E141: Alcool propargylique | F141: Propargyl alcohol | G141: 1 | H141: 2.3 | M141: TRUE | P141: 0.15 | S141: 11.6 | T141: 20
C142: 137 | D142: 107-98-2 | E142: Éther monométhylique de propylène glycol | F142: Propylene glycol monomethyl ether | G142: 100 | H142: 369 | I142: 150 | J142: 553 | M142: FALSE | P142: 100 | S142: 11.8 | T142: 25
C143: 138 | D143: 75-56-9 | E143: Oxyde de propylène | F143: Propylene oxide | G143: 20 | H143: 48 | M143: FALSE | N143: C2 | O143: EM | P143: 10 | Q143: 210 | R143: 400 | S143: 538 | T143: 25
C144: 139 | D144: 110-86-1 | E144: Pyridine | F144: Pyridine | G144: 5 | H144: 16 | M144: FALSE | P144: 0.2 | R144: 1000 | S144: 20.8 | T144: 25
C145: 140 | D145: 626-38-0 | E145: Acétate d'amyle secondaire | F145: sec-Amyl acetate | G145: 50 | H145: 266 | I145: 100 | J145: 532 | M145: FALSE | P145: 0.002 | Q145: 0.08 | R145: 1000 | S145: 7 | T145: 20
C146: 141 | D146: 105-46-4 | E146: Acétate de butyle secondaire | F146: sec-Butyl acetate | G146: 200 | H146: 950 | M146: FALSE | R146: 1700 | S146: 17 | T146: 20
C147: 142 | D147: 78-92-2 | E147: Alcool butylique secondaire | F147: sec-Butyl alcohol | G147: 100 | H147: 303 | M147: FALSE | P147: 43.3 | R147: 2000 | S147: 18.3 | T147: 25
C148: 143 | D148: 108-84-9 | E148: Acétate d'hexyle secondaire | F148: sec-Hexyl acetate | G148: 50 | H148: 295 | M148: FALSE | R148: 500 | S148: 4 | T148: 20
C149: 144 | D149: 126-99-8 | E149: bêta-Chloroprène | F149: ß-Chloroprene | G149: 10 | H149: 36 | M149: TRUE | P149: 15 | R149: 300 | S149: 215 | T149: 25
C150: 145 | D150: 57-57-8 | E150: bêta-Propiolactone | F150: ß-Propiolactone | G150: 0.5 | H150: 1.5 | M150: FALSE | N150: C2 | O150: EM | S150: 3.4 | T150: 25
C151: 146 | D151: 100-42-5 | E151: Styrène (monomère) | F151: Styrene (monomer) | G151: 50 | H151: 213 | I151: 100 | J151: 426 | M151: TRUE | N151: C3 | P151: 0.14 | Q151: 200 | R151: 700 | S151: 6.4 | T151: 25
C152: 147 | D152: 540-88-5 | E152: Acétate de butyle tertiaire | F152: tert-Butyl acetate | G152: 200 | H152: 950 | M152: FALSE | R152: 1500 | S152: 47 | T152: 25
C153: 148 | D153: 75-65-0 | E153: Alcool butylique tertiaire | F153: tert-Butyl alcohol | G153: 100 | H153: 303 | M153: FALSE | P153: 72 | R153: 1600 | S153: 40.7 | T153: 25
C154: 149 | D154: 109-99-9 | E154: Tétrahydrofurane | F154: Tetrahydrofuran | G154: 100 | H154: 300 | M154: FALSE | P154: 2.5 | Q154: 60 | R154: 2000 | S154: 162 | T154: 25
C155: 150 | D155: 108-88-3 | E155: Toluène | F155: Toluene | G155: 50 | H155: 188 | M155: TRUE | P155: 6.7 | R155: 500 | S155: 28.4 | T155: 25
C156: 151 | D156: 79-01-6 | E156: Trichloroéthylène | F156: Trichloroethylene | G156: 50 | H156: 269 | I156: 200 | J156: 1070 | M156: FALSE | P156: 82 | R156: 1000 | S156: 69 | T156: 25
C157: 152 | D157: 25551-13-7 | E157: Triméthylbenzène | F157: Trimethyl benzene | G157: 25 | H157: 123 | M157: FALSE | P157: 0.6 | S157: 2.1 | T157: 25
C158: 153 | D158: 108-05-4 | E158: Acétate de vinyle | F158: Vinyl acetate | G158: 10 | H158: 35 | I158: 15 | J158: 53 | M158: FALSE | N158: C3 | P158: 0.12 | Q158: 0.55 | S158: 90.2 | T158: 20
C159: 154 | D159: 25013-15-4 | E159: Vinyltoluène | F159: Vinyl toluene | G159: 50 | H159: 242 | I159: 100 | J159: 483 | M159: FALSE | P159: 50 | R159: 400 | S159: 1.81 | T159: 25
C160: 155 | D160: 1330-20-7 | E160: Xylène (isomères o,m,p) [1330-20-7; 95-47-6; 108-38-3; 106-42-3] | F160: Xylene (o-,m-,p- isomers) | G160: 100 | H160: 434 | I160: 150 | J160: 651 | M160: FALSE | P160: 1 | R160: 900 | S160: 8.29 | T160: 25

Sheet R1
B6: Level of control | C6: Examples LINKS | D6: Fraction of the saturation vapor concentration "SVC"
B7: Confined Space – Virtually no circulation | D7: 1/10th of Saturation
B8: Poor – Limited Circulation | D8: 1/100th of Saturation
B9: Good – General | D9: 1/1,000th of Saturation
B10: Capture | D10: 1/10,000th of Saturation
B11: Containment | D11: 1/100,000th of Saturation

Sheet R2
B6: Vapor Hazard Ratio (VHR) | C6: VHR Scale | D6: Required Levels of Control (ReqLC) | E6: Examples LINKS
B7: < 0.05 | C7: 1 | D7: General Ventilation ~ 3 to 6 air turnovers /hr.
B8: 0.05 to < 1 | C8: 2 | D8: Good general ventilation ~ 6 to 12 air turnovers/hr. (GGV)
B9: 1 to < 25 | C9: 3 | D9: GGV with capture at emission points
B10: 25 to < 500 | C10: 4 | D10: Capture at points of emission with containment wherever practical
B11: 500 to < 3000 | C11: 5 | D11: Containment
B12: > 3000 | C12: 6 | D12: Primary and Secondary Containment

Sheet R3
B6: OEL Range mg/m³ | C6: PHR Scale | D6: Required Levels of Control (ReqLC) | E6: Examples LINKS
B7: > 5 | C7: 1 | D7: General ventilation ~ 2 to 4 air turnovers/hr.
B8: ≤ 5 to 1 | C8: 2 | D8: Good – General + fans ~ 4 to 6 air turnovers/hr.
B9: ≤ 1 to 0.1 | C9: 3 | D9: Good – General + fans ~ 6 to 8 air turnovers/hr.
B10: ≤ 0.1 to 0.01 | C10: 4 | D10: Capture
B11: ≤ 0.01 to 0.001 | C11: 5 | D11: Containment
B12: ≤ 0.001 | C12: 6 | D12: Secondary containment

Sheet L1
A1: 1
A2: =IF(NumberL1=1,"Rule of ten",IF(NumberL1=2,"VHR","PHR")) -> Rule of ten
A3: =IF(NumberL1=1,"General Ventilation ~ 1 to 2 air turnovers /hr.",IF(NumberL1=2,"General Ventilation ~ 3 to 6 air turnovers /hr.","General Ventilation ~ 2 to 4 air turnovers /hr.")) -> General Ventilation ~ 1 to 2 air turnovers /hr.

Sheet L2
A1: 3
A2: =IF(NumberL2=1,"Rule of ten",IF(NumberL2=2,"VHR","PHR")) -> PHR
A3: =IF(NumberL2=1,"General Ventilation ~ 1 to 2 air turnovers /hr.",IF(NumberL2=2,"General Ventilation ~ 6 to 12 air turnovers /hr.","General Ventilation ~ 4 to 6 air turnovers /hr.")) -> General Ventilation ~ 4 to 6 air turnovers /hr.

Sheet L3
A1: 1

Sheet L4
A1: 3

Sheet L5
A1: 1

Sheet L6
A1: 3

Sheet to do (hidden)
H2: Lx? | I2: Lx? | J2: Lx?
H3: L1 | I3: Lx? | J3: Lx?
H4: L2 | I4: Lx? | J4: Lx?
H5: L3 | I5: Lx? | J5: Lx?
H6: L5 | I6: Lx? | J6: Lx?
I7: Lx? | J7: Lx?

Sheet L7
A1: 1

Sheet L8
A1: 1
